fUSD/lending_fUSD_20260703
["ID","MTS","AMOUNT","RATE_DAILY","PERIOD"]
[426931180,1783023047000,-165020.57647188,0.00037,2]
[426931194,1783023047000,-350.318216,0.00037,7]
[426931182,1783023047000,-12000.00254606,0.00037,2]
[426931196,1783023047000,-347.318216,0.00037,7]
[426931184,1783023047000,-846.62725131,0.00037,120]
[426931186,1783023047000,-2167.36444567,0.00037,120]
[426931190,1783023047000,-347.318216,0.00037,7]
[426931192,1783023047000,-344.318216,0.00037,7]
[426931161,1783023047000,-152.29842172,0.00037,2]
[426931164,1783023047000,-152.29842172,0.00037,2]
[426931160,1783023047000,-152.29842172,0.00037,2]
[426931129,1783023047000,-197.38851541,0.00036986,120]
[426931158,1783023047000,-152.29842172,0.00037,2]
[426931198,1783023047000,-344.318216,0.00037,7]
[426931130,1783023047000,-151.0,0.00036997,14]
[426931133,1783023047000,-2000.0,0.00036999,2]
[426931132,1783023047000,-221.09715828,0.00036999,2]
[426931131,1783023047000,-398.13709067,0.00036999,2]
[426931135,1783023047000,-2000.0,0.00036999,120]
[426931134,1783023047000,-2000.0,0.00036999,7]
[426931139,1783023047000,-2000.0,0.00036999,5]
[426931138,1783023047000,-2000.0,0.00036999,60]
[426931137,1783023047000,-2000.0,0.00036999,15]
[426931136,1783023047000,-2000.0,0.00036999,30]
[426931140,1783023047000,-2000.0,0.00036999,14]
[426931141,1783023047000,-2000.0,0.00036999,20]
[426931154,1783023047000,-152.29842186,0.00037,2]
[426931143,1783023047000,-2000.0,0.00036999,61]
[426931146,1783023047000,-800.0,0.00037,45]
[426931144,1783023047000,-112483.20699276,0.00037,7]
[426931147,1783023047000,-800.0,0.00037,45]
[426931152,1783023047000,-372.34674981,0.00037,120]
[426931145,1783023047000,-1000.0,0.00037,120]
[426931151,1783023047000,-1714318.0,0.00037,50]
[426931149,1783023047000,-800.0,0.00037,45]
[426931150,1783023047000,-800.0,0.00037,45]
[426931148,1783023047000,-800.0,0.00037,45]
[426931153,1783023047000,-3056.39178865,0.00037,120]
[426931155,1783023047000,-152.29842172,0.00037,2]
[426931157,1783023047000,-152.29842172,0.00037,2]
[426931156,1783023047000,-152.29842172,0.00037,2]
[426931142,1783023047000,-2000.0,0.00036999,31]
[426931200,1783023047000,-350.318216,0.00037,7]
[426931217,1783023047000,-347.318216,0.00037,7]
[426931211,1783023047000,-347.318216,0.00037,7]
[426931236,1783023047000,-357.049278,0.00037,14]
[426931237,1783023047000,-354.049278,0.00037,14]
[426931238,1783023047000,-360.049278,0.00037,14]
[426931241,1783023047000,-360.049278,0.00037,14]
[426931251,1783023047000,-357.049278,0.00037,14]
[426931252,1783023047000,-354.049278,0.00037,14]
[426931243,1783023047000,-354.049278,0.00037,14]
[426931242,1783023047000,-357.049278,0.00037,14]
[426931240,1783023047000,-354.049278,0.00037,14]
[426931247,1783023047000,-360.049278,0.00037,14]
[426931244,1783023047000,-360.049278,0.00037,14]
[426931250,1783023047000,-360.049278,0.00037,14]
[426931246,1783023047000,-354.049278,0.00037,14]
[426931235,1783023047000,-360.049278,0.00037,14]
[426931205,1783023047000,-347.318216,0.00037,7]
[426931245,1783023047000,-357.049278,0.00037,14]
[426931253,1783023047000,-360.049278,0.00037,14]
[426931254,1783023047000,-357.049278,0.00037,14]
[426931255,1783023047000,-354.049278,0.00037,14]
[426931256,1783023047000,-360.049278,0.00037,14]
[426931257,1783023047000,-357.049278,0.00037,14]
[426931262,1783023047000,-360.049278,0.00037,14]
[426931260,1783023047000,-357.049278,0.00037,14]
[426931264,1783023047000,-354.049278,0.00037,14]
[426931263,1783023047000,-357.049278,0.00037,14]
[426931258,1783023047000,-354.049278,0.00037,14]
[426931259,1783023047000,-360.049278,0.00037,14]
[426931261,1783023047000,-354.049278,0.00037,14]
[426931248,1783023047000,-357.049278,0.00037,14]
[426931228,1783023047000,-350.318216,0.00037,7]
[426931249,1783023047000,-354.049278,0.00037,14]
[426931234,1783023047000,-354.049278,0.00037,14]
[426931239,1783023047000,-357.049278,0.00037,14]
[426931203,1783023047000,-344.318216,0.00037,7]
[426931206,1783023047000,-344.318216,0.00037,7]
[426931204,1783023047000,-350.318216,0.00037,7]
[426931210,1783023047000,-350.318216,0.00037,7]
[426931202,1783023047000,-347.318216,0.00037,7]
[426931208,1783023047000,-347.318216,0.00037,7]
[426931209,1783023047000,-344.318216,0.00037,7]
[426931207,1783023047000,-350.318216,0.00037,7]
[426931213,1783023047000,-350.318216,0.00037,7]
[426931215,1783023047000,-344.318216,0.00037,7]
[426931225,1783023047000,-350.318216,0.00037,7]
[426931214,1783023047000,-347.318216,0.00037,7]
[426931226,1783023047000,-347.318216,0.00037,7]
[426931212,1783023047000,-344.318216,0.00037,7]
[426931216,1783023047000,-350.318216,0.00037,7]
[426931230,1783023047000,-344.318216,0.00037,7]
[426931218,1783023047000,-344.318216,0.00037,7]
[426931233,1783023047000,-357.049278,0.00037,14]
[426931227,1783023047000,-344.318216,0.00037,7]
[426931229,1783023047000,-347.318216,0.00037,7]
[426931231,1783023047000,-350.318216,0.00037,7]
[426931232,1783023047000,-468.049278,0.00037,14]
[426931222,1783023047000,-350.318216,0.00037,7]
[426931219,1783023047000,-350.318216,0.00037,7]
[426931221,1783023047000,-344.318216,0.00037,7]
[426931220,1783023047000,-347.318216,0.00037,7]
[426931223,1783023047000,-347.318216,0.00037,7]
[426931224,1783023047000,-344.318216,0.00037,7]
[426931285,1783023048000,-313.0,0.00037,30]
[426931290,1783023048000,-250.0,0.00037,30]
[426931282,1783023048000,-158.0,0.00037,30]
[426931283,1783023048000,-158.0,0.00037,30]
[426931291,1783023048000,-154.0,0.00037,30]
[426931284,1783023048000,-190.0,0.00037,30]
[426931304,1783023048000,-170.25,0.00037024,2]
[426931287,1783023048000,-156.0,0.00037,30]
[426931288,1783023048000,-151.0,0.00037,30]
[426931289,1783023048000,-164.0,0.00037,120]
[426931293,1783023048000,-231.89178,0.00037,85]
[426931281,1783023048000,-155.0,0.00037,30]
[426931286,1783023048000,-538.0,0.00037,120]
[426931280,1783023048000,-1490.69,0.00037,120]
[426931265,1783023048000,-360.049278,0.00037,14]
[426931274,1783023048000,-298.272528,0.00037,14]
[426931273,1783023048000,-257.06,0.00037,7]
[426931276,1783023048000,-150.0,0.00037,2]
[426931275,1783023048000,-193.74,0.00037,30]
[426931271,1783023048000,-4000.00313983,0.00037,50]
[426931266,1783023048000,-357.049278,0.00037,14]
[426931272,1783023048000,-201.35,0.00037,7]
[426931277,1783023048000,-160.0,0.00037,120]
[426931270,1783023048000,-800.0,0.00037,45]
[426931269,1783023048000,-5155.66386963,0.00037,60]
[426931268,1783023048000,-8136.30754325,0.00037,120]
[426931278,1783023048000,-199.539999,0.00037,15]
[426931267,1783023048000,-354.049278,0.00037,14]
[426931303,1783023048000,-10131.21,0.00037016,14]
[426931279,1783023048000,-160.0,0.00037,30]
[426931292,1783023048000,-156.0,0.00037,30]
[426931320,1783023048000,-265.42,0.0003705,2]
[426931294,1783023048000,-231.89178,0.00037,85]
[426931296,1783023048000,-160.0,0.00037,120]
[426931326,1783023048000,-1124.99800332,0.00027397,10]
[426931325,1783023048000,-1693.14997921,0.00037055,30]
[426931324,1783023048000,-87883.36885938,0.00037055,30]
[426931322,1783023048000,-379.8,0.00037053,120]
[426931321,1783023048000,-253.2,0.00037053,30]
[426931318,1783023048000,-162.370417,0.00037042,115]
[426931327,1783023048000,-637.38302335,0.00027397,10]
[426931323,1783023048000,-161.21534329,0.00037055,2]
[426931319,1783023048000,-1306.19,0.00037046,30]
[426931314,1783023048000,-1567.86482314,0.0003704,120]
[426931311,1783023048000,-12577.58515862,0.0003704,120]
[426931312,1783023048000,-6271.45929256,0.0003704,120]
[426931315,1783023048000,-783.93241157,0.0003704,120]
[426931313,1783023048000,-3135.72964628,0.0003704,120]
[426931309,1783023048000,-171.32,0.00037038,2]
[426931297,1783023048000,-379.24324695,0.00037,60]
[426931301,1783023048000,-300.0,0.00037012,2]
[426931295,1783023048000,-231.0,0.00037,30]
[426931298,1783023048000,-155.0,0.00037,30]
[426931310,1783023048000,-760.56158601,0.00037039,2]
[426931299,1783023048000,-157.0,0.00037,30]
[426931300,1783023048000,-1061.93733476,0.00037005,15]
[426931302,1783023048000,-412.43,0.00037012,2]
[426931305,1783023048000,-265.1,0.00037024,30]
[426931308,1783023048000,-270.41631613,0.00037036,2]
[426931316,1783023048000,-391.96620579,0.0003704,120]
[426931307,1783023048000,-398.13709067,0.00037031,2]
[426931317,1783023048000,-587.94930867,0.0003704,120]
[426931306,1783023048000,-397.65,0.00037024,120]
[426931334,1783023049000,-300.0,0.00033542,2]
[426931329,1783023049000,-1101.26754386,0.00033542,2]
[426931328,1783023049000,-300.0,0.00033542,2]
[426931330,1783023049000,-155.88734814,0.00033542,2]
[426931331,1783023049000,-144.11265186,0.00033542,2]
[426931332,1783023049000,-21297.75866072,0.00037055,30]
[426931335,1783023049000,-3523.06613287,0.00037055,30]
[426931333,1783023049000,-300.0,0.00033542,2]
[426931337,1783023049000,-14759.52542505,0.00037055,30]
[426931336,1783023049000,-2131.857362,0.00037055,30]
[426931338,1783023049000,-1476.95636305,0.00037055,30]
[426931341,1783023049000,-300.0,0.00033542,2]
[426931339,1783023049000,-500.0,0.00037055,30]
[426931340,1783023049000,-5913.0,0.00037055,30]
[426931342,1783023049000,-1204.35168675,0.00037055,30]
[426931365,1783024231000,-150.0,0.0001611,2]
[426931371,1783024231000,-151.0,0.0001611,2]
[426931367,1783024231000,-150.0,0.0001611,2]
[426931364,1783024231000,-150.0,0.0001611,2]
[426931372,1783024231000,-150.0,0.0001611,2]
[426931370,1783024231000,-151.0,0.0001611,2]
[426931373,1783024231000,-151.0,0.0001611,2]
[426931366,1783024231000,-151.0,0.0001611,2]
[426931363,1783024231000,-150.0,0.0001611,2]
[426931374,1783024231000,-502.0,0.0001611,2]
[426931375,1783024231000,-151.0,0.00016513,2]
[426931378,1783024231000,-600.0,0.00016586,2]
[426931368,1783024231000,-150.0,0.0001611,2]
[426931362,1783024231000,-151.0,0.0001611,2]
[426931354,1783024231000,-300.0,0.00015404,2]
[426931353,1783024231000,-429.29938689,0.0001531,2]
[426931377,1783024231000,-300.0,0.00016586,2]
[426931359,1783024231000,-153.0,0.0001611,2]
[426931361,1783024231000,-151.0,0.0001611,2]
[426931360,1783024231000,-152.0,0.0001611,2]
[426931355,1783024231000,-1524.62897633,0.0001541,2]
[426931356,1783024231000,-661.5241402,0.0001551,2]
[426931358,1783024231000,-150.0,0.0001611,2]
[426931351,1783024231000,-600.0,0.00015194,2]
[426931352,1783024231000,-300.0,0.00015194,2]
[426931350,1783024231000,-111.72192636,0.00015136,2]
[426931348,1783024231000,-200.0,0.00015078,2]
[426931349,1783024231000,-188.27807364,0.00015136,2]
[426931357,1783024231000,-157.387859,0.0001611,2]
[426931381,1783024231000,-550.0,0.0001684,2]
[426931369,1783024231000,-152.0,0.0001611,2]
[426931376,1783024231000,-600.0,0.00016586,2]
[426931380,1783024231000,-300.0,0.00016586,2]
[426931409,1783024231000,-500.0,0.00020597,2]
[426931406,1783024231000,-500.0,0.00020597,2]
[426931405,1783024231000,-500.0,0.00020597,2]
[426931404,1783024231000,-500.0,0.00020597,2]
[426931403,1783024231000,-150.0,0.0002058,2]
[426931398,1783024231000,-2027.75653852,0.0002041,2]
[426931401,1783024231000,-150.0,0.0002058,2]
[426931402,1783024231000,-150.0,0.0002058,2]
[426931399,1783024231000,-150.0,0.0002058,2]
[426931400,1783024231000,-150.0,0.0002058,2]
[426931407,1783024231000,-500.0,0.00020597,2]
[426931396,1783024231000,-219.93,0.00020349,2]
[426931397,1783024231000,-389.0,0.00020393,2]
[426931395,1783024231000,-204.25,0.00020251,2]
[426931408,1783024231000,-500.0,0.00020597,2]
[426931392,1783024231000,-1589.0,0.0001913,2]
[426931391,1783024231000,-164.66,0.00018957,2]
[426931382,1783024231000,-600.0,0.00016841,2]
[426931384,1783024231000,-175.03230136,0.00016904,2]
[426931385,1783024231000,-794.83535814,0.00016904,2]
[426931383,1783024231000,-250.0,0.00016841,2]
[426931387,1783024231000,-6246.6,0.00017704,2]
[426931379,1783024231000,-193.0,0.00016586,2]
[426931389,1783024231000,-59347.95505933,0.00017704,2]
[426931388,1783024231000,-1089.54,0.00017704,2]
[426931394,1783024231000,-250.0,0.00019923,2]
[426931393,1783024231000,-500.0,0.00019397,2]
[426931386,1783024231000,-6926.97005172,0.00017704,2]
[426931390,1783024231000,-935.0,0.00017952,2]
[426931442,1783024232000,-500.0,0.00020872,2]
[426931453,1783024232000,-216.69616408,0.00022134,2]
[426931449,1783024232000,-10023.89124446,0.00021446,2]
[426931455,1783024232000,-777.00081007,0.00022385,2]
[426931446,1783024232000,-554.37,0.00021273,2]
[426931445,1783024232000,-1684.86,0.00021273,2]
[426931448,1783024232000,-10882.26,0.00021273,2]
[426931444,1783024232000,-150.0,0.00020956,2]
[426931440,1783024232000,-500.0,0.00020598,2]
[426931456,1783024232000,-12581.79080809,0.00022385,2]
[426931447,1783024232000,-612.12,0.00021273,2]
[426931443,1783024232000,-433.69935803,0.00020956,2]
[426931461,1783024232000,-160.0,0.00023067,2]
[426931452,1783024232000,-7325.99663795,0.00021986,2]
[426931454,1783024232000,-500.0,0.00022201,2]
[426931458,1783024232000,-607.05,0.00022466,2]
[426931467,1783024232000,-150.0,0.00024164,2]
[426931469,1783024232000,-160.0,0.00025,2]
[426931459,1783024232000,-500.0,0.00022645,2]
[426931457,1783024232000,-899.09,0.00022466,2]
[426931468,1783024232000,-1230.6616,0.00024533,120]
[426931463,1783024232000,-154.0,0.00024,2]
[426931460,1783024232000,-150.0,0.00023014,2]
[426931462,1783024232000,-166.57890718,0.00023633,2]
[426931438,1783024232000,-500.0,0.00020597,2]
[426931465,1783024232000,-162.0,0.00024,2]
[426931450,1783024232000,-225.5,0.00021716,2]
[426931441,1783024232000,-23533.25080325,0.00020599,2]
[426931420,1783024232000,-500.0,0.00020597,2]
[426931437,1783024232000,-500.0,0.00020597,2]
[426931464,1783024232000,-203.0,0.00024,2]
[426931410,1783024232000,-520.18263898,0.00020597,2]
[426931414,1783024232000,-500.0,0.00020597,2]
[426931415,1783024232000,-322.21712188,0.00020597,2]
[426931411,1783024232000,-500.0,0.00020597,2]
[426931412,1783024232000,-500.0,0.00020597,2]
[426931413,1783024232000,-500.0,0.00020597,2]
[426931416,1783024232000,-500.0,0.00020597,2]
[426931417,1783024232000,-500.0,0.00020597,2]
[426931418,1783024232000,-500.0,0.00020597,2]
[426931419,1783024232000,-500.0,0.00020597,2]
[426931421,1783024232000,-500.0,0.00020597,2]
[426931423,1783024232000,-500.0,0.00020597,2]
[426931422,1783024232000,-500.0,0.00020597,2]
[426931424,1783024232000,-500.0,0.00020597,2]
[426931428,1783024232000,-500.0,0.00020597,2]
[426931431,1783024232000,-500.0,0.00020597,2]
[426931425,1783024232000,-500.0,0.00020597,2]
[426931430,1783024232000,-500.0,0.00020597,2]
[426931426,1783024232000,-496.14751466,0.00020597,2]
[426931429,1783024232000,-504.62517734,0.00020597,2]
[426931427,1783024232000,-500.0,0.00020597,2]
[426931432,1783024232000,-500.0,0.00020597,2]
[426931436,1783024232000,-500.0,0.00020597,2]
[426931439,1783024232000,-500.0,0.00020597,2]
[426931435,1783024232000,-500.0,0.00020597,2]
[426931434,1783024232000,-500.0,0.00020597,2]
[426931433,1783024232000,-500.0,0.00020597,2]
[426931466,1783024232000,-152.0,0.00024,2]
[426931451,1783024232000,-150.0,0.00021918,2]
[426931472,1783024232000,-152.0,0.00025,2]
[426931505,1783024232000,-316.38237996,0.00027676,2]
[426931497,1783024232000,-579.1527,0.00027576,2]
[426931506,1783024232000,-163.64833573,0.00027676,2]
[426931504,1783024232000,-232.2049184,0.00027676,2]
[426931503,1783024232000,-234.86551947,0.00027676,2]
[426931508,1783024232000,-319.95164087,0.00027676,2]
[426931507,1783024232000,-199.95211592,0.00027676,2]
[426931509,1783024232000,-212.38215365,0.00027676,2]
[426931511,1783024232000,-291.09586794,0.00027676,2]
[426931513,1783024232000,-307.83283524,0.00027676,2]
[426931514,1783024232000,-248.12957447,0.00027676,2]
[426931510,1783024232000,-294.85914016,0.00027676,2]
[426931515,1783024232000,-278.26313264,0.00027676,2]
[426931512,1783024232000,-189.7183914,0.00027676,2]
[426931516,1783024232000,-285.47495541,0.00027676,2]
[426931519,1783024232000,-300.54102316,0.00027676,2]
[426931518,1783024232000,-305.75045792,0.00027676,2]
[426931526,1783024232000,-251.56380514,0.00027676,2]
[426931520,1783024232000,-377.35381921,0.00027676,2]
[426931522,1783024232000,-335.83003669,0.00027676,2]
[426931521,1783024232000,-173.2147718,0.00027676,2]
[426931524,1783024232000,-298.22467967,0.00027676,2]
[426931525,1783024232000,-299.43503172,0.00027676,2]
[426931523,1783024232000,-154.07256398,0.00027676,2]
[426931528,1783024232000,-775.03,0.00027819,2]
[426931527,1783024232000,-219.12586512,0.00027676,2]
[426931470,1783024232000,-203.0,0.00025,2]
[426931502,1783024232000,-176.47435146,0.00027676,2]
[426931500,1783024232000,-371.93153389,0.00027676,2]
[426931517,1783024232000,-230.48162992,0.00027676,2]
[426931501,1783024232000,-194.01150639,0.00027676,2]
[426931474,1783024232000,-2530.88410071,0.0002541,2]
[426931499,1783024232000,-155.0193921,0.00027676,2]
[426931482,1783024232000,-4156.54,0.00026591,2]
[426931475,1783024232000,-203.0,0.00026,2]
[426931476,1783024232000,-162.0,0.00026,2]
[426931473,1783024232000,-1030.52010017,0.00025095,2]
[426931481,1783024232000,-299.99,0.00026591,12]
[426931477,1783024232000,-152.0,0.00026,2]
[426931478,1783024232000,-5000.0,0.00026048,2]
[426931480,1783024232000,-2226.8615,0.00026492,120]
[426931479,1783024232000,-200.0,0.00026461,2]
[426931484,1783024232000,-8705.76225531,0.00026591,2]
[426931483,1783024232000,-1294.22774469,0.00026591,2]
[426931529,1783024232000,-170.59,0.00027988,2]
[426931471,1783024232000,-162.0,0.00025,2]
[426931494,1783024232000,-1805.75,0.00027397,10]
[426931498,1783024232000,-4164.9908,0.00027576,2]
[426931490,1783024232000,-150.27051158,0.00027117,2]
[426931491,1783024232000,-1363.6,0.00027397,10]
[426931492,1783024232000,-2600.29,0.00027397,10]
[426931488,1783024232000,-162.0,0.00027,2]
[426931489,1783024232000,-152.0,0.00027,2]
[426931496,1783024232000,-150.99,0.00027397,2]
[426931495,1783024232000,-9999.99,0.00027397,2]
[426931487,1783024232000,-203.0,0.00027,2]
[426931485,1783024232000,-150.0,0.00026734,2]
[426931486,1783024232000,-1021.38,0.00026774,2]
[426931493,1783024232000,-2166.91,0.00027397,10]
[426931550,1783024233000,-4722.1,0.0002999,2]
[426931549,1783024233000,-775.03,0.00029906,2]
[426931547,1783024233000,-199.89275219,0.000299,2]
[426931548,1783024233000,-199.89275218,0.000299,2]
[426931551,1783024233000,-800.0,0.0003,2]
[426931553,1783024233000,-250.0,0.00030153,5]
[426931546,1783024233000,-384.48210855,0.00029428,2]
[426931555,1783024233000,-663.0,0.00030159,5]
[426931557,1783024233000,-686.0,0.00030167,5]
[426931554,1783024233000,-675.0,0.00030154,5]
[426931556,1783024233000,-150.51,0.00030165,2]
[426931558,1783024233000,-162.3,0.00030177,2]
[426931563,1783024233000,-663.0,0.00030321,5]
[426931545,1783024233000,-187.86362475,0.0002921,2]
[426931540,1783024233000,-157.23588198,0.00029,2]
[426931542,1783024233000,-152.75212558,0.00029,2]
[426931541,1783024233000,-172.0,0.00029,2]
[426931543,1783024233000,-665.9,0.00029195,2]
[426931536,1783024233000,-200.0,0.00028788,2]
[426931535,1783024233000,-164.64,0.00028567,120]
[426931534,1783024233000,-775.03,0.00028515,2]
[426931538,1783024233000,-212.0,0.00029,2]
[426931537,1783024233000,-978.7588181,0.00028867,2]
[426931533,1783024233000,-168.41,0.00028134,120]
[426931531,1783024233000,-162.0,0.00028,2]
[426931532,1783024233000,-152.0,0.00028,2]
[426931539,1783024233000,-160.37394455,0.00029,10]
[426931530,1783024233000,-203.0,0.00028,2]
[426931559,1783024233000,-681.0,0.00030181,5]
[426931544,1783024233000,-587.16637525,0.0002921,2]
[426931561,1783024233000,-150.0,0.00030195,5]
[426931552,1783024233000,-195.65355631,0.00030137,30]
[426931562,1783024233000,-671.0,0.00030203,5]
[426931560,1783024233000,-247.0,0.00030195,5]
[426931592,1783024233000,-213.90842185,0.00032239,2]
[426931591,1783024233000,-93.41507315,0.00032239,2]
[426931593,1783024233000,-437.09157815,0.00032239,2]
[426931590,1783024233000,-414.58492685,0.00032239,2]
[426931588,1783024233000,-500.0,0.00032239,2]
[426931589,1783024233000,-85.41507315,0.00032239,2]
[426931587,1783024233000,-398.04035317,0.00032239,2]
[426931584,1783024233000,-603.74,0.00032232,7]
[426931581,1783024233000,-939.266,0.00032068,30]
[426931582,1783024233000,-502.0,0.00032083,16]
[426931585,1783024233000,-653.25,0.00032232,7]
[426931586,1783024233000,-10882.26,0.00032232,7]
[426931579,1783024233000,-1278.0,0.00032056,2]
[426931580,1783024233000,-500.0,0.00032068,30]
[426931583,1783024233000,-1684.86,0.00032232,7]
[426931576,1783024233000,-860.9544,0.00032,2]
[426931574,1783024233000,-173.89116102,0.00031507,15]
[426931568,1783024233000,-2755.155,0.00030553,26]
[426931571,1783024233000,-35548.10928622,0.0003136,2]
[426931566,1783024233000,-800.0,0.000305,2]
[426931578,1783024233000,-223.0,0.00032056,2]
[426931569,1783024233000,-775.03,0.00030601,2]
[426931567,1783024233000,-163.506,0.00030553,26]
[426931565,1783024233000,-3034.0116629,0.0003041,30]
[426931575,1783024233000,-212.52,0.00031675,3]
[426931570,1783024233000,-800.0,0.00031,2]
[426931572,1783024233000,-150.0,0.00031364,5]
[426931573,1783024233000,-800.0,0.000315,2]
[426931577,1783024233000,-800.0,0.00032,5]
[426931564,1783024233000,-151.0,0.00030403,5]
[426931610,1783024237000,-500.0,0.00032239,2]
[426931604,1783024237000,-747.79223375,0.00016029,2]
[426931605,1783024237000,-1742.52765525,0.00016029,2]
[426931606,1783024237000,-150.0,0.0002058,2]
[426931609,1783024237000,-62.90842185,0.00032239,2]
[426931608,1783024237000,-1322.406,0.00032056,2]
[426931607,1783024237000,-1504.8,0.00027397,10]
[426931613,1783024237000,-171.32769658,0.00032259,2]
[426931612,1783024237000,-383.86478587,0.00032239,2]
[426931611,1783024237000,-500.0,0.00032239,2]
[426931617,1783024237000,-150.51,0.00032877,2]
[426931614,1783024237000,-170.59,0.00032653,2]
[426931618,1783024237000,-157.48,0.00032985,2]
[426931616,1783024237000,-307.26392284,0.00032777,2]
[426931619,1783024237000,-9000.0,0.00032995,5]
[426931615,1783024237000,-156.98,0.00032689,3]
[426931691,1783024238000,-300.0,0.00033538,2]
[426931684,1783024238000,-300.0,0.00033538,2]
[426931679,1783024238000,-300.0,0.00033538,2]
[426931678,1783024238000,-302.19910179,0.00033538,2]
[426931671,1783024238000,-303.40388377,0.00033538,2]
[426931673,1783024238000,-300.00000001,0.00033538,2]
[426931682,1783024238000,-300.0,0.00033538,2]
[426931669,1783024238000,-300.0,0.00033538,2]
[426931661,1783024238000,-536.83065571,0.00033538,2]
[426931663,1783024238000,-730.2023839,0.00033538,2]
[426931676,1783024238000,-300.0,0.00033538,2]
[426931686,1783024238000,-300.0,0.00033538,2]
[426931700,1783024238000,-300.0,0.00033538,2]
[426931693,1783024238000,-300.0,0.00033538,2]
[426931695,1783024238000,-345.80256672,0.00033538,2]
[426931698,1783024238000,-529.6723478,0.00033538,2]
[426931702,1783024238000,-300.0,0.00033538,2]
[426931703,1783024238000,-300.0,0.00033538,2]
[426931708,1783024238000,-954.40977015,0.00033538,2]
[426931716,1783024238000,-564.57560998,0.00033538,2]
[426931706,1783024238000,-300.0,0.00033538,2]
[426931712,1783024238000,-300.0,0.00033538,2]
[426931710,1783024238000,-1807.51296116,0.00033538,2]
[426931718,1783024238000,-300.0,0.00033538,2]
[426931652,1783024238000,-607.91868214,0.00033538,2]
[426931689,1783024238000,-300.0,0.00033538,2]
[426931655,1783024238000,-300.0,0.00033538,2]
[426931622,1783024238000,-2500.0,0.00033436,2]
[426931657,1783024238000,-300.0,0.00033538,2]
[426931714,1783024238000,-300.0,0.00033538,2]
[426931621,1783024238000,-307.2639228,0.00033258,2]
[426931623,1783024238000,-22301.47851047,0.00033438,2]
[426931628,1783024238000,-283.0185168,0.0003346,30]
[426931624,1783024238000,-2000.0,0.00033442,2]
[426931627,1783024238000,-162.52780859,0.0003346,30]
[426931625,1783024238000,-150.0,0.0003346,30]
[426931626,1783024238000,-150.0,0.0003346,30]
[426931630,1783024238000,-197.38851541,0.0003346,30]
[426931631,1783024238000,-260.17608374,0.0003346,30]
[426931629,1783024238000,-150.0,0.0003346,30]
[426931632,1783024238000,-1581.0,0.00033534,10]
[426931659,1783024238000,-300.0,0.00033538,2]
[426931633,1783024238000,-300.0,0.00033538,2]
[426931646,1783024238000,-300.0,0.00033538,2]
[426931648,1783024238000,-300.0,0.00033538,2]
[426931634,1783024238000,-300.0,0.00033538,2]
[426931638,1783024238000,-300.0,0.00033538,2]
[426931636,1783024238000,-300.0,0.00033538,2]
[426931640,1783024238000,-300.0,0.00033538,2]
[426931641,1783024238000,-495.35167751,0.00033538,2]
[426931644,1783024238000,-300.0,0.00033538,2]
[426931639,1783024238000,-300.0,0.00033538,2]
[426931637,1783024238000,-300.0,0.00033538,2]
[426931642,1783024238000,-300.0,0.00033538,2]